bitfinex/quotes_ETHUSD_20210701
["timestamp","ask_amount","ask_price","bid_price","bid_amount"]
[1625145614961,0.01660846,2136.8,2136.7,0.06]
[1625145615360,0.02223101,2137.5,2136.7,0.06]
[1625145615459,0.02223101,2137.5,2136.9,3.5071001]
[1625145615559,0.02223101,2137.5,2136.9,7.0138901]
[1625145615761,0.02223101,2137.5,2137.0,0.2]
[1625145616091,4.84353101,2137.5,2136.6,0.00676431]
[1625145616540,11.86003101,2137.5,2136.6,0.00676431]
[1625145617936,11.86003101,2137.5,2136.6,7.02276431]
[1625145619242,4.84353101,2137.5,2136.6,7.02276431]
[1625145619444,4.84353101,2137.5,2136.7,0.08]
[1625145619891,4.84353101,2137.5,2136.8,3.5072149]
[1625145620393,4.83248373,2137.5,2137.1,7.01419]
[1625145620924,4.83248373,2137.5,2137.2,0.06]
[1625145621275,4.83248373,2137.5,2136.8,12.8601749]
[1625145621472,4.83248373,2137.5,2137.2,7.01415]
[1625145621622,4.83248373,2137.5,2136.8,12.8601749]
[1625145621725,4.83248373,2137.5,2136.8,9.35296]
[1625145621876,0.00613157,2137.4,2136.6,0.00676431]
[1625145622726,0.00613157,2137.4,2136.7,0.04]
[1625145623575,0.00613157,2137.4,2136.6,0.00676431]
[1625145624178,0.00613157,2137.4,2136.9,7.01506]
[1625145624979,0.00613157,2137.4,2136.6,0.00676431]
[1625145625131,3.62323157,2137.4,2136.6,0.00676431]
[1625145625229,10.63925157,2137.4,2136.6,0.00676431]
[1625145625677,10.48925157,2137.4,2136.6,0.00676431]
[1625145627380,72.18944195,2137.3,2136.6,0.00676431]
[1625145627474,0.1209065,2137.2,2136.6,0.00676431]
[1625145627577,3.50926,2137.0,2136.6,0.00676431]
[1625145627774,11.84522,2137.0,2136.6,0.00676431]
[1625145627874,11.99522,2137.0,2136.6,0.00676431]
[1625145628676,21.99522,2137.0,2136.6,0.00676431]
[1625145628876,36.99522,2137.0,2136.6,0.00676431]
[1625145628979,40.81428845,2137.0,2136.6,0.00676431]
[1625145629229,51.36765016,2136.9,2136.6,0.00676431]
[1625145629336,2.0,2136.7,2136.6,0.00676431]
[1625145629430,2.0,2136.7,2135.6,0.00927303]
[1625145629431,37.5585,2136.7,2135.6,0.00927303]
[1625145629607,0.16561474,2136.6,2135.6,0.00927303]
[1625145629739,0.15,2136.5,2135.6,0.00927303]
[1625145629941,4.8775107,2136.4,2135.6,0.00927303]
[1625145630089,0.15,2136.3,2135.6,0.00927303]
[1625145630444,7.02083,2136.2,2135.6,0.00927303]
[1625145631092,7.14062098,2136.2,2135.6,0.00927303]
[1625145632018,7.02083,2136.2,2135.6,0.00927303]
[1625145632119,7.13432101,2136.2,2135.6,0.00927303]
[1625145632321,7.02083,2136.2,2135.6,0.00927303]
[1625145632471,7.12825422,2136.2,2135.6,0.00927303]
[1625145632568,7.02083,2136.2,2135.6,0.00927303]
[1625145632768,7.12236128,2136.2,2135.6,0.00927303]
[1625145633123,18.51092,2136.1,2135.6,0.00927303]
[1625145633223,7.02224,2135.9,2135.6,0.00927303]
[1625145633322,20.18034,2135.9,2135.6,0.00927303]
[1625145633420,14.2675,2135.9,2135.6,0.00927303]
[1625145633524,0.15,2135.8,2135.6,0.00927303]
[1625145635168,7.17274,2135.8,2135.6,0.00927303]
[1625145636348,0.0134107,2135.7,2135.6,0.00927303]
[1625145636543,0.1634107,2135.7,2135.6,0.00927303]
[1625145637748,0.15,2135.7,2135.6,0.00927303]
[1625145637907,20.2125,2136.0,2135.6,0.00927303]
[1625145638931,9.9781,2136.0,2135.6,0.00927303]
[1625145639182,21.8274,2136.2,2135.6,0.00927303]
[1625145639882,28.84751,2136.2,2135.6,0.00927303]
[1625145640680,4.599,2136.1,2135.6,0.00927303]
[1625145641224,7.02156,2135.9,2135.6,0.00927303]
[1625145643925,0.21966851,2135.8,2133.8,12.0595762]
[1625145644024,0.38307921,2135.8,2133.8,12.0595762]
[1625145644240,0.01412148,2134.6,2133.8,9.59102878]
[1625145644336,4.73622148,2134.6,2133.8,9.59102878]
[1625145644438,4.73622148,2134.6,2133.7,11.70133]
[1625145644736,4.73622148,2134.6,2133.6,7.0403305]
[1625145645598,4.73622148,2134.6,2133.6,9.50887792]
[1625145645687,0.14849363,2135.0,2133.7,0.15]
[1625145645787,0.01236059,2135.1,2133.7,0.35]
[1625145645886,0.01236059,2135.1,2134.1,7.02233]
[1625145646132,0.01236059,2135.1,2134.2,0.15]
[1625145646234,0.01236059,2135.1,2133.9,9.3631]
[1625145646431,0.01236059,2135.1,2134.0,0.06]
[1625145646685,0.01236059,2135.1,2134.1,0.15]
[1625145646982,0.01236059,2135.1,2134.1,2.61854742]
[1625145647137,0.01236059,2135.1,2134.2,9.36188]
[1625145647826,0.01236059,2135.1,2134.3,0.16]
[1625145648178,0.01236059,2135.1,2134.6,7.02079]
[1625145649024,0.01074368,2135.6,2134.6,7.02079]
[1625145649927,0.01074368,2135.6,2134.6,7.03315059]
[1625145650484,0.01074368,2135.6,2134.6,0.01236059]
[1625145650582,7.03198368,2135.6,2134.6,0.01236059]
[1625145654344,0.00927303,2136.1,2134.7,2.60729557]
[1625145654439,0.00927303,2136.1,2134.8,15.0]
[1625145654540,0.00927303,2136.1,2134.8,15.2]
[1625145654641,0.00927303,2136.1,2134.9,0.15]
[1625145654795,0.00927303,2136.1,2134.9,2.71315823]
[1625145654891,0.00927303,2136.1,2135.0,15.0]
[1625145654986,0.00927303,2136.1,2135.3,3.5083823]
[1625145655089,0.00927303,2136.1,2135.5,3.50811]
[1625145655289,0.00927303,2136.1,2135.8,9.35495]
[1625145655590,0.00927303,2136.1,2135.9,0.2]
[1625145656292,0.00927303,2136.1,2135.1,0.53165288]
[1625145656395,0.00927303,2136.1,2135.1,7.03053368]
[1625145658388,0.00927303,2136.1,2135.2,0.04]
[1625145658980,0.00927303,2136.1,2135.2,7.05922]
[1625145659308,0.00927303,2136.1,2135.2,7.00922]
[1625145660510,0.00927303,2136.1,2135.1,0.01074368]
[1625145660609,3.73007303,2136.1,2135.1,0.01074368]
[1625145661681,10.75008303,2136.1,2135.1,7.03033368]
[1625145661881,10.75008303,2136.1,2135.2,0.2]
[1625145661882,3.73007303,2136.1,2135.2,0.2]
[1625145661985,3.73007303,2136.1,2135.3,4.0]
[1625145663729,3.73007303,2136.1,2135.4,7.01859]
[1625145663833,3.73007303,2136.1,2135.6,2.0]
[1625145663929,3.73007303,2136.1,2135.6,4.0]
[1625145664182,3.73007303,2136.1,2135.7,0.06]
[1625145664379,3.73007303,2136.1,2135.1,0.01074368]
[1625145664832,3.73007303,2136.1,2135.5,7.01844]
[1625145666029,3.73007303,2136.1,2135.3,9.35791]
[1625145666132,3.73007303,2136.1,2135.1,2.01074368]
[1625145666631,3.73007303,2136.1,2135.2,2.0]
[1625145666730,3.73007303,2136.1,2135.1,0.01074368]
[1625145666882,3.73007303,2136.1,2135.1,0.94277996]
[1625145667080,3.73007303,2136.1,2135.1,0.01074368]
[1625145667182,7.02004,2136.1,2135.1,7.03056368]
[1625145667285,2.0,2136.9,2135.3,2.0]
[1625145667451,0.00676431,2137.1,2136.0,3.46]
[1625145667544,0.00676431,2137.1,2136.3,2.77692704]
[1625145667641,0.0105147,2137.6,2136.4,15.02017682]
[1625145667737,0.0105147,2137.6,2136.5,3.46]
[1625145667949,0.0105147,2137.6,2136.6,0.15]
[1625145668051,0.0105147,2137.6,2136.6,5.3904151]
[1625145668203,0.0105147,2137.6,2137.1,9.34814]
[1625145668305,0.0105147,2137.6,2137.2,2.0]
[1625145668605,0.0105147,2137.6,2137.3,0.15]
[1625145668902,0.0105147,2137.6,2137.3,3.37109044]
[1625145669101,0.0105147,2137.6,2137.4,0.2]
[1625145669254,0.0105147,2137.6,2137.4,2.2]
[1625145669356,0.0105147,2137.6,2137.4,11.54753]
[1625145669463,0.0105147,2137.6,2137.5,2.0]
[1625145669559,0.0105147,2137.6,2136.6,0.00676431]
[1625145669761,3.4625147,2137.6,2136.6,0.00676431]
[1625145670754,0.15,2137.5,2136.6,0.00676431]
[1625145671246,4.5615052,2137.5,2136.6,0.00676431]
[1625145671346,2.0,2137.3,2136.6,0.00676431]
[1625145671450,2.15,2137.3,2136.6,0.00676431]
[1625145672377,2.0,2137.3,2136.6,0.00676431]
[1625145672382,2.0,2137.2,2136.6,0.00676431]
[1625145673029,0.0105147,2137.6,2136.6,0.00676431]
[1625145673126,0.0105147,2137.6,2136.6,4.80486431]
[1625145673430,0.0105147,2137.6,2137.1,7.01359]
[1625145673527,0.0105147,2137.6,2137.1,10.64979]
[1625145675146,0.0105147,2137.6,2137.1,3.6362]
[1625145675245,0.0105147,2137.6,2137.0,1.9519]
[1625145675350,0.0105147,2137.6,2136.9,9.35041]
[1625145675446,0.0105147,2137.6,2137.1,0.18]
[1625145675852,0.0105147,2137.6,2137.1,7.19359]
[1625145675955,0.0105147,2137.6,2137.1,7.01359]
[1625145676052,0.0105147,2137.6,2137.0,9.35146]
[1625145676153,4.2143147,2137.6,2136.1,9.35882517]
[1625145676453,4.2143147,2137.6,2136.6,0.93468282]
[1625145676833,19.3643147,2137.6,2136.6,0.93468282]
[1625145677138,4.3643147,2137.6,2136.6,0.93468282]
[1625145677343,2.0,2137.3,2136.6,0.93468282]
[1625145678292,4.2143147,2137.6,2136.6,0.93468282]
[1625145678643,4.3643147,2137.6,2136.6,0.93468282]
[1625145678793,19.3643147,2137.6,2136.6,0.93468282]
[1625145679095,19.3643147,2137.6,2136.6,0.00676431]
[1625145679199,20.28843952,2137.6,2136.6,0.00676431]
[1625145680395,19.3643147,2137.6,2136.6,0.00676431]
[1625145681146,4.3643147,2137.6,2136.6,0.00676431]
[1625145681249,2.0,2136.9,2136.6,0.00676431]
[1625145681500,2.0,2136.9,2136.7,0.18]
[1625145681797,2.0,2136.9,2136.6,0.00676431]
[1625145682348,0.1605147,2137.6,2136.6,0.00676431]
[1625145682451,0.0105147,2137.6,2136.6,0.00676431]
[1625145682755,0.0105147,2137.6,2136.6,4.44886431]
[1625145682954,0.0105147,2137.6,2136.6,4.48286718]
[1625145683052,0.0105147,2137.6,2136.7,0.1]
[1625145684207,0.0105147,2137.6,2137.1,7.01397]
[1625145685356,0.0105147,2137.6,2137.2,0.04]
[1625145685707,0.0105147,2137.6,2136.9,9.35195]
[1625145685864,0.0105147,2137.6,2136.6,0.04076718]
[1625145686908,0.0105147,2137.6,2136.8,7.01481]
[1625145688262,0.0105147,2137.6,2136.9,0.03399406]
[1625145688513,1.51201954,2137.8,2136.9,0.03399406]
[1625145689464,10.0669,2137.9,2137.1,0.0105147]
[1625145691354,12.0669,2137.9,2137.1,0.0105147]
[1625145692358,2.0,2137.5,2137.1,0.0105147]
[1625145693806,2.0,2137.5,2137.1,0.04450765]
[1625145694356,2.0,2137.6,2137.1,0.04450765]
[1625145695381,2.15,2137.7,2137.1,0.04450765]
[1625145696186,17.15,2137.7,2137.1,0.04450765]
[1625145696284,2.0,2137.2,2137.1,0.04450765]
[1625145696441,6.5836,2137.2,2137.1,0.04450765]
[1625145696684,6.5836,2137.2,2135.9,11.69019]
[1625145696990,0.19351933,2137.1,2135.6,0.53018223]
[1625145697121,0.00676431,2137.1,2135.6,0.53018223]
[1625145697218,0.15,2137.0,2135.6,0.53018223]
[1625145697318,0.11293633,2136.9,2135.6,0.53018223]
[1625145697471,0.26293633,2136.9,2135.6,0.53018223]
[1625145697619,0.15,2136.9,2135.6,0.53018223]
[1625145697819,0.139563,2136.9,2135.6,0.00927303]
[1625145698071,7.01871,2136.7,2135.7,7.01847]
[1625145698168,11.02321,2136.7,2135.7,7.01847]
[1625145698423,11.02321,2136.7,2135.6,0.00927303]
[1625145698771,4.0045,2136.7,2135.6,0.00927303]
[1625145699741,4.0045,2136.7,2136.1,7.02563777]
[1625145699846,2.0,2136.9,2136.1,7.02563777]
[1625145700090,2.0,2136.9,2136.2,0.12]
[1625145700297,0.15676431,2137.1,2136.2,0.12]
[1625145700298,0.00676431,2137.1,2136.2,0.12]
[1625145700543,0.00676431,2137.1,2136.1,1.69564777]
[1625145700991,0.00676431,2137.1,2136.3,9.35509]
[1625145701611,0.00676431,2137.1,2136.4,0.04]
[1625145701915,0.00676431,2137.1,2136.3,9.35509]
[1625145702066,7.02406431,2137.1,2136.1,0.00794777]
[1625145704168,7.02406431,2137.1,2136.1,7.02556777]
[1625145706321,9.02406431,2137.1,2136.1,7.02556777]
[1625145706775,10.0,2137.0,2136.1,0.00794777]
[1625145707273,2.0,2136.8,2136.1,0.00794777]
[1625145707975,7.01865,2136.6,2136.1,0.00794777]
[1625145709742,7.00762108,2136.6,2136.1,0.00794777]
[1625145709843,9.3582,2136.8,2136.1,0.00794777]
[1625145709941,2.0,2136.9,2136.1,0.00794777]
[1625145710245,0.0134107,2136.8,2136.1,0.00794777]
[1625145710392,0.04,2136.7,2136.1,0.00794777]
[1625145711322,10.0,2136.4,2136.1,0.00794777]
[1625145711774,17.01918,2136.4,2136.1,0.00794777]
[1625145711972,7.01918,2136.4,2136.1,0.00794777]
[1625145712273,9.01918,2136.4,2136.1,0.00794777]
[1625145712723,8.90220844,2136.4,2136.1,0.00794777]
[1625145713376,2.0,2136.3,2136.1,0.00794777]
[1625145713923,1.95,2136.3,2136.1,0.00794777]
[1625145714329,7.01904,2136.4,2136.1,0.00794777]
[1625145715464,9.35962,2136.5,2136.1,0.00794777]
[1625145715564,0.15,2136.8,2136.1,0.00794777]
[1625145717169,7.01837,2136.6,2136.1,0.00794777]
[1625145717407,11.0044,2136.9,2136.1,0.00794777]
[1625145717505,2.0,2137.0,2136.1,0.00794777]
[1625145717906,2.0,2137.0,2136.2,0.1]
[1625145718106,2.0,2137.0,2136.1,0.00794777]
[1625145718306,42.7087,2137.2,2136.1,0.00794777]
[1625145719838,42.7087,2137.2,2136.1,3.51601777]
[1625145719943,42.7087,2137.2,2136.1,4.65651777]
[1625145720192,42.7087,2137.2,2136.5,1.3135]
[1625145720290,42.7087,2137.2,2136.5,5.9292]
[1625145721195,42.7087,2137.2,2136.6,7.01587]
[1625145721293,44.7087,2137.2,2136.6,7.01587]
[1625145721491,44.7087,2137.2,2136.7,0.12]
[1625145722248,42.7087,2137.2,2136.7,0.12]
[1625145722497,42.7087,2137.2,2136.7,7.01547]
[1625145722596,42.7087,2137.2,2136.6,0.8274]
[1625145722997,42.7087,2137.2,2135.8,17.76732853]
[1625145723102,42.7087,2137.2,2136.1,0.00794777]
[1625145723297,44.7087,2137.2,2136.1,0.00794777]
[1625145724133,7.02318431,2137.1,2136.2,9.35523]
[1625145724191,7.02318431,2137.1,2136.1,0.00794777]
[1625145724797,7.17318431,2137.1,2136.1,0.00794777]
[1625145724994,10.0,2137.0,2136.1,0.00794777]
[1625145725099,25.04,2137.0,2136.1,0.00794777]
[1625145725245,2.0,2136.6,2136.1,0.00794777]
[1625145727137,7.01895,2136.4,2136.1,0.00794777]
[1625145727392,2.0,2136.6,2136.1,3.59424777]
[1625145727589,2.0,2136.6,2136.2,0.2]
[1625145727789,0.00676431,2137.1,2136.2,0.2]
[1625145728292,0.00676431,2137.1,2136.6,7.01537]
[1625145728390,0.00676431,2137.1,2136.6,10.06607]
[1625145728490,0.00676431,2137.1,2136.6,11.03063628]
[1625145728643,0.00676431,2137.1,2136.7,0.04]
[1625145728743,0.00676431,2137.1,2136.6,3.0507]
[1625145733487,0.00676431,2137.1,2136.5,9.64106]
[1625145733588,0.00676431,2137.1,2136.5,8.63456]
[1625145733739,0.00676431,2137.1,2136.6,0.12]
[1625145733841,0.00676431,2137.1,2136.6,3.2487]
[1625145734339,0.00676431,2137.1,2136.6,3.1287]
[1625145734611,0.00676431,2137.1,2136.6,2.9787]
[1625145738963,0.00676431,2137.1,2136.5,1.0009]
[1625145739064,0.00676431,2137.1,2136.2,12.8636]
[1625145739168,0.00676431,2137.1,2136.3,7.0169]
[1625145739314,0.00676431,2137.1,2136.3,7.9811157]
[1625145739464,0.00676431,2137.1,2136.4,0.9642157]
[1625145739992,0.00676431,2137.1,2136.2,3.50804]
[1625145739995,0.00676431,2137.1,2136.3,0.03400272]
[1625145740091,0.15676431,2137.1,2136.3,0.03400272]
[1625145740296,7.17439431,2137.1,2136.4,0.9642157]
[1625145740394,7.17439431,2137.1,2136.3,0.03400272]
[1625145740549,7.17439431,2137.1,2136.5,0.9642157]
[1625145740642,7.17439431,2137.1,2136.4,0.9642157]
[1625145740742,7.17439431,2137.1,2136.3,0.03400272]
[1625145740943,7.17439431,2137.1,2136.3,0.77858758]
[1625145741395,7.17439431,2137.1,2136.3,0.03400272]
[1625145744567,22.17439431,2137.1,2136.3,0.03400272]
[1625145744820,7.01848,2136.7,2136.3,0.03400272]
[1625145744971,0.04,2137.0,2136.3,0.03400272]
[1625145745067,15.15676431,2137.1,2136.3,0.03400272]
[1625145746125,15.15676431,2137.1,2136.1,0.00794777]
[1625145746373,15.15676431,2137.1,2136.1,0.65826889]
[1625145746803,7.01848,2136.7,2136.1,0.65826889]
[1625145746951,7.01848,2136.7,2136.1,0.00794777]
[1625145748972,0.15,2136.9,2136.1,0.00794777]
[1625145749131,0.00676431,2137.1,2136.5,1.6314]
[1625145755040,0.00676431,2137.1,2136.4,4.57157]
[1625145755193,7.02398431,2137.1,2136.4,3.50847]
[1625145755294,7.02398431,2137.1,2136.4,4.02295244]
[1625145755749,22.02398431,2137.1,2136.4,0.51448244]
[1625145755848,22.02398431,2137.1,2136.2,0.51448244]
[1625145755951,22.02398431,2137.1,2136.4,0.51448244]
[1625145756099,0.04,2137.0,2136.2,0.51448244]
[1625145756204,7.01825,2136.8,2136.4,0.51448244]
[1625145756300,7.01825,2136.8,2136.1,0.00794777]
[1625145756453,7.01825,2136.8,2136.2,0.51448244]
[1625145756552,7.01825,2136.8,2136.1,0.00794777]
[1625145756652,22.01825,2136.8,2136.3,0.51448244]
[1625145756750,22.01825,2136.8,2136.1,0.00794777]
[1625145756854,7.01825,2136.8,2136.1,0.5558101]
[1625145757099,7.01825,2136.8,2136.1,0.00794777]
[1625145757199,7.01825,2136.8,2136.1,0.5558101]
[1625145757302,7.01825,2136.8,2136.1,0.00794777]
[1625145757401,7.01825,2136.8,2136.1,4.0649501]
[1625145757600,7.01825,2136.8,2136.2,0.54786233]
[1625145757701,7.01825,2136.8,2136.2,4.3445]
[1625145757802,7.01825,2136.8,2136.2,4.89236233]
[1625145757899,7.01825,2136.8,2136.2,4.3445]
[1625145758147,0.00676431,2137.1,2136.2,4.3445]
[1625145758445,0.00676431,2137.1,2136.3,0.2]
[1625145759447,0.00676431,2137.1,2136.6,7.01598]
[1625145759546,0.00676431,2137.1,2136.6,3.50823]
[1625145759646,0.00676431,2137.1,2136.6,4.02981445]
[1625145759796,0.00676431,2137.1,2136.7,3.4433]
[1625145760440,0.00676431,2137.1,2136.7,3.2433]
[1625145760540,7.02351431,2137.1,2136.7,3.2433]
[1625145765107,7.02351431,2137.1,2136.6,4.64883]
[1625145765258,7.02351431,2137.1,2136.6,3.50823]
[1625145765562,7.02351431,2137.1,2136.8,0.03399056]
[1625145766011,7.02351431,2137.1,2136.8,5.13209056]
[1625145767462,0.00676431,2137.1,2136.8,5.13209056]
[1625145767714,0.00676431,2137.1,2136.9,0.12]
[1625145769118,0.00676431,2137.1,2136.9,7.01491]
[1625145771096,0.0105147,2137.6,2136.9,7.01491]
[1625145771248,0.0105147,2137.6,2137.0,3.39415437]
[1625145771447,0.0105147,2137.6,2137.2,3.50657]
[1625145771576,0.0105147,2137.6,2137.2,4.64687]
[1625145771677,0.0105147,2137.6,2137.3,3.39415437]
[1625145771773,0.0105147,2137.6,2137.3,8.30015437]
[1625145771875,0.0105147,2137.6,2137.4,3.39415437]
[1625145772030,0.0105147,2137.6,2137.5,7.01173]
[1625145772222,0.0105147,2137.6,2137.5,10.40588437]
[1625145772374,0.0105147,2137.6,2137.5,7.01173]
[1625145772578,0.0105147,2137.6,2137.5,2.75690357]
[1625145772727,0.0105147,2137.6,2137.5,2.85690357]
[1625145774339,0.0105147,2137.6,2137.5,2.75690357]
[1625145774541,0.0105147,2137.6,2137.4,2.75690357]
[1625145774639,0.0105147,2137.6,2137.5,2.75690357]
[1625145774791,0.0105147,2137.6,2137.4,2.75690357]
[1625145774941,0.0105147,2137.6,2137.5,2.75690357]
[1625145775039,0.0105147,2137.6,2137.4,2.75690357]
[1625145775195,0.0105147,2137.6,2137.5,0.04]
[1625145775346,0.0105147,2137.6,2137.5,2.75690357]
[1625145775494,0.0105147,2137.6,2137.3,2.75690357]
[1625145775597,0.0105147,2137.6,2137.5,2.75690357]
[1625145775692,0.0105147,2137.6,2136.9,2.75690357]
[1625145775790,0.0105147,2137.6,2136.8,0.03399056]
[1625145775890,0.0105147,2137.6,2137.0,2.75690357]
[1625145776045,0.0105147,2137.6,2137.1,0.06]
[1625145776145,0.0105147,2137.6,2137.1,2.81690357]
[1625145776249,0.0105147,2137.6,2136.9,2.75690357]
[1625145776394,0.0105147,2137.6,2137.2,2.75690357]
[1625145776548,0.0105147,2137.6,2136.9,9.77111357]
[1625145776647,0.0105147,2137.6,2137.3,0.06]
[1625145776845,0.0105147,2137.6,2137.3,1.81124181]
[1625145776998,0.0105147,2137.6,2137.3,4.2601]
[1625145777097,0.0105147,2137.6,2137.3,6.07134181]
[1625145777245,0.0105147,2137.6,2137.3,4.2601]
[1625145779200,7.0250247,2137.6,2137.3,4.2601]
[1625145779451,7.0250247,2137.6,2136.8,0.03399056]
[1625145779554,7.0250247,2137.6,2136.9,1.9304023]
[1625145779745,0.04,2137.5,2136.8,0.03399056]
[1625145779841,0.04,2137.5,2136.9,1.9304023]
[1625145779941,0.15,2137.4,2136.8,0.03399056]
[1625145780038,0.15,2137.4,2136.9,1.9304023]
[1625145780139,0.15,2137.4,2136.8,1.96439286]
[1625145780238,0.15,2137.4,2137.0,1.9304023]
[1625145780342,0.15,2137.4,2136.8,1.96439286]
[1625145780443,7.01649,2137.2,2136.8,0.03399056]
[1625145780599,7.01649,2137.2,2136.9,1.9304023]
[1625145780699,7.01649,2137.2,2136.8,0.03399056]
[1625145780797,7.01649,2137.2,2136.9,1.9304023]
[1625145780897,0.04,2137.1,2136.8,1.01684567]
[1625145780996,0.04,2137.1,2136.9,0.98285511]
[1625145781197,12.86371,2137.3,2136.9,0.98285511]
[1625145781698,12.86371,2137.3,2136.8,0.03399056]
[1625145781799,7.01694,2137.0,2136.8,0.03399056]
[1625145781903,0.15,2137.4,2136.8,0.03399056]
[1625145783042,3.5084,2137.3,2136.8,0.03399056]
[1625145783146,7.01694,2137.0,2136.8,0.03399056]
[1625145783247,7.01694,2137.0,2136.9,1.00251464]
[1625145783346,7.01694,2137.0,2136.8,0.03399056]
[1625145783547,7.01694,2137.0,2136.9,1.00251464]
[1625145783798,7.01694,2137.0,2136.8,1.0365052]
[1625145783997,7.01694,2137.0,2136.9,1.00251464]
[1625145784096,7.01694,2137.0,2136.8,1.0365052]
[1625145784198,7.01694,2137.0,2136.9,1.00251464]
[1625145784298,7.01694,2137.0,2136.8,1.0365052]
[1625145784397,7.01694,2137.0,2136.9,1.00251464]
[1625145784549,7.01694,2137.0,2136.8,1.04664194]
[1625145784650,7.01694,2137.0,2136.9,1.01265138]
[1625145784748,7.01694,2137.0,2136.8,1.04664194]
[1625145784847,7.01694,2137.0,2136.9,1.01265138]
[1625145784948,7.01694,2137.0,2136.8,1.04664194]
[1625145785091,7.01694,2137.0,2136.9,1.01265138]
[1625145785243,7.01694,2137.0,2136.8,1.04664194]
[1625145785340,7.01694,2137.0,2136.9,1.01265138]
[1625145785443,7.01694,2137.0,2136.8,1.04664194]
[1625145785542,7.01694,2137.0,2136.9,1.01265138]
[1625145785643,7.01694,2137.0,2136.8,4.19044194]
[1625145785745,7.01694,2137.0,2136.9,1.01265138]
[1625145785846,3.6585037,2137.4,2136.9,1.01265138]
[1625145785946,3.6585037,2137.4,2136.9,1.13265138]
[1625145786092,3.6585037,2137.4,2136.9,1.01265138]
[1625145786193,0.15,2137.4,2136.9,1.01265138]
[1625145786545,3.5084,2137.3,2136.9,1.01265138]
[1625145787198,3.5084,2137.3,2136.6,0.00676431]
[1625145787199,7.01685,2137.1,2136.6,0.00676431]
[1625145787372,22.16685,2137.1,2136.6,0.00676431]
[1625145787468,22.16685,2137.1,2136.6,1.01941569]
[1625145787563,22.16685,2137.1,2136.6,0.00676431]
[1625145787663,22.16685,2137.1,2136.6,1.01941569]
[1625145787767,22.16685,2137.1,2136.6,0.00676431]
[1625145787919,23.53251047,2137.0,2136.6,1.01265138]
[1625145788065,15.15,2136.9,2136.1,0.00794777]
[1625145788216,15.19,2136.9,2136.2,1.01265138]
[1625145788316,15.19,2136.9,2136.1,0.00794777]
[1625145788414,0.04,2136.8,2136.3,1.01265138]
[1625145788515,0.04,2136.8,2136.1,0.00794777]
[1625145788615,0.19,2136.8,2136.3,1.01265138]
[1625145788714,0.19,2136.8,2136.1,0.00794777]
[1625145788963,7.01949,2136.5,2136.1,1.02059915]
[1625145789064,7.01949,2136.5,2136.1,0.00794777]
[1625145791210,7.01949,2136.5,2136.1,0.04194925]
[1625145791312,7.01949,2136.5,2136.1,2.38334925]
[1625145791462,51.7223,2136.8,2136.1,2.38334925]
[1625145791562,41.5372,2136.8,2136.1,6.61554925]
[1625145791837,41.4872,2136.8,2136.1,6.61554925]
[1625145793182,7.01772,2136.7,2136.1,6.61554925]
[1625145795881,41.4872,2136.8,2136.1,6.61554925]
[1625145796079,41.4872,2136.8,2136.2,0.16]
[1625145796375,0.00676431,2137.1,2136.2,0.16]
[1625145797575,0.00676431,2137.1,2136.2,7.17637]
[1625145797675,0.00676431,2137.1,2136.2,3.66804]
[1625145797827,0.00676431,2137.1,2136.2,3.50804]
[1625145799125,7.01654,2137.1,2136.2,10.52455]
[1625145800026,7.01654,2137.1,2136.6,0.00676431]
[1625145800897,0.04,2137.0,2136.6,0.00676431]
[1625145801192,0.15,2136.9,2136.6,0.00676431]
[1625145801293,7.01919,2136.8,2136.6,0.00676431]
[1625145801541,7.16919,2136.8,2136.6,0.00676431]
[1625145801793,15.04,2136.7,2136.6,0.00676431]
[1625145801891,35.04,2136.7,2136.6,0.00676431]
[1625145802045,15.2034107,2136.7,2136.6,0.00676431]
[1625145802293,62.22944195,2136.7,2136.6,0.00676431]
[1625145802594,62.22944195,2136.7,2136.1,1.356e-05]
[1625145802694,7.0204959,2136.6,2136.1,1.356e-05]
[1625145802790,15.0,2136.5,2136.1,1.356e-05]
[1625145802940,15.15,2136.5,2136.1,1.356e-05]
[1625145803122,0.04,2136.4,2136.1,0.53572649]
[1625145803222,0.04,2136.4,2136.1,1.356e-05]
[1625145803324,0.04,2136.3,2136.1,0.53572649]
[1625145803424,0.04,2136.3,2136.1,1.356e-05]
[1625145803522,0.04,2136.3,2136.1,0.53572649]
[1625145803624,7.02001,2136.2,2136.1,1.356e-05]
[1625145803823,7.02001,2136.2,2136.1,0.53572649]
[1625145804927,9.36066,2136.5,2136.1,0.53572649]
[1625145805028,9.36066,2136.5,2136.1,4.10202649]
[1625145805130,14.03213,2137.0,2136.1,4.10202649]
[1625145805232,14.03213,2137.0,2136.2,0.59571293]
[1625145805233,21.7351,2136.9,2136.2,0.59571293]
[1625145805378,21.7351,2136.9,2136.3,0.53571293]
[1625145805481,21.7351,2136.9,2136.2,1.89302428]
[1625145805679,21.7351,2136.9,2136.4,1.89302428]
[1625145805782,21.7351,2136.9,2136.2,1.89302428]
[1625145805887,21.7351,2136.9,2136.1,3.56631356]
[1625145805980,21.7351,2136.9,2136.3,1.89302428]
[1625145806079,21.7351,2136.9,2136.2,1.89302428]
[1625145806183,21.7351,2136.9,2136.4,1.89302428]
[1625145806279,21.7351,2136.9,2136.1,3.56631356]
[1625145806280,21.7351,2136.9,2136.2,1.89302428]
[1625145806381,21.7351,2136.9,2136.4,1.89302428]
[1625145806483,21.7351,2136.9,2136.3,0.06]
[1625145806679,21.7351,2136.9,2136.4,1.89302428]
[1625145806932,21.7351,2136.9,2136.3,1.89302428]
[1625145807081,21.7351,2136.9,2136.4,1.89302428]
[1625145807181,21.7351,2136.9,2136.2,1.89302428]
[1625145807284,21.7351,2136.9,2136.5,1.89302428]
[1625145807380,21.7351,2136.9,2136.4,1.1297]
[1625145807480,21.7351,2136.9,2136.5,1.89302428]
[1625145807617,21.7351,2136.9,2136.4,1.1297]
[1625145807711,21.7351,2136.9,2136.5,4.76739825]
[1625145807864,21.7351,2136.9,2136.4,5.89709825]
[1625145807964,21.7351,2136.9,2136.6,4.76739825]
[1625145808061,21.7351,2136.9,2136.6,3.4961]
[1625145808214,21.7351,2136.9,2136.6,8.26349825]
[1625145808215,10.7247,2136.9,2136.6,8.26349825]
[1625145808465,17.74166,2136.9,2136.6,8.26349825]
[1625145809959,17.74166,2136.9,2136.6,3.4961]